bitfinex-derivatives/quotes_BTCF0:USTF0_20230402
["timestamp","ask_amount","ask_price","bid_price","bid_amount"]
[1680400557970,0.0714,28407.0,28406.0,0.1354]
[1680400558269,0.0714,28407.0,28406.0,0.0854]
[1680400559059,0.0714,28407.0,28406.0,0.1354]
[1680400560166,0.001,28407.0,28406.0,0.1348]
[1680400562174,0.001,28407.0,28406.0,0.13472506]
[1680400562871,0.001,28407.0,28406.0,0.43542506]
[1680400564673,0.001,28407.0,28406.0,0.13472506]
[1680400564867,0.001,28407.0,28406.0,0.43542506]
[1680400566371,0.4970662,28414.0,28407.0,0.05]
[1680400566573,0.07,28414.0,28413.0,0.05]
[1680400566977,0.07,28414.0,28412.0,0.0704]
[1680400567277,0.09,28414.0,28412.0,0.0704]
[1680400567774,0.09,28414.0,28413.0,0.002]
[1680400568973,0.09,28414.0,28412.0,0.0724]
[1680400569268,0.07,28414.0,28412.0,0.0704]
[1680400569468,0.09,28414.0,28413.0,0.002]
[1680400570368,0.3707,28414.0,28412.0,0.0704]
[1680400572277,0.3907,28414.0,28413.0,0.002]
[1680400572574,0.3707,28414.0,28412.0,0.0704]
[1680400572880,0.3907,28414.0,28412.0,0.0724]
[1680400573074,0.3907,28414.0,28412.0,0.0704]
[1680400573075,0.3707,28414.0,28412.0,0.0704]
[1680400573281,0.3907,28414.0,28413.0,0.002]
[1680400573782,0.3907,28414.0,28412.0,0.0724]
[1680400574174,0.3907,28414.0,28413.0,0.002]
[1680400575480,0.3907,28414.0,28412.0,0.0724]
[1680400575681,0.3707,28414.0,28412.0,0.0704]
[1680400575882,0.3907,28414.0,28413.0,0.002]
[1680400578181,0.39047292,28414.0,28413.0,0.002]
[1680400583886,0.56683912,28414.0,28413.0,0.001]
[1680400586388,0.51683912,28414.0,28413.0,0.001]
[1680400586584,0.76996004,28414.0,28413.0,0.001]
[1680400586779,0.81996004,28414.0,28413.0,0.001]
[1680400588686,0.65117292,28414.0,28413.0,0.001]
[1680400591992,0.81996004,28414.0,28413.0,0.001]
[1680400593292,0.65117292,28414.0,28413.0,0.001]
[1680400593494,0.81996004,28414.0,28413.0,0.001]
[1680400593693,0.65117292,28414.0,28413.0,0.001]
[1680400593896,0.81996004,28414.0,28413.0,0.001]
[1680400594096,0.65117292,28414.0,28413.0,0.001]
[1680400594293,0.60117292,28414.0,28413.0,0.001]
[1680400596596,0.5170568,28414.0,28413.0,0.001]
[1680400600902,0.8177568,28414.0,28413.0,0.001]
[1680400606914,0.8881568,28414.0,28413.0,0.001]
[1680400616221,1.05694392,28414.0,28413.0,0.001]
[1680400616423,0.93036004,28414.0,28413.0,0.001]
[1680400616624,0.76157292,28414.0,28413.0,0.001]
[1680400621830,0.93036004,28414.0,28413.0,0.001]
[1680400622824,0.32896004,28414.0,28413.0,0.001]
[1680400623025,0.93036004,28414.0,28413.0,0.001]
[1680400625029,0.05,28413.0,28405.0,0.07]
[1680400625229,0.3711,28407.0,28405.0,0.07]
[1680400626731,0.3711,28407.0,28405.0,0.085]
[1680400626928,0.3719,28407.0,28406.0,0.0704]
[1680400627835,0.3719,28407.0,28406.0,0.0854]
[1680400629034,0.3721,28407.0,28406.0,0.0848]
[1680400639646,0.3017,28407.0,28406.0,0.0854]
[1680400649946,0.001,28407.0,28406.0,0.1557]
[1680400650149,0.3707,28413.0,28406.0,0.2057]
[1680400650348,0.3707,28413.0,28411.0,0.0697]
[1680400651345,0.3917,28413.0,28411.0,0.0707]
[1680400656960,0.3917,28413.0,28412.0,0.0704]
[1680400658855,0.3917,28413.0,28412.0,0.0714]
[1680400659763,0.3827,28413.0,28412.0,0.0714]
[1680400664962,0.082,28413.0,28412.0,0.0714]
[1680400667061,0.012,28413.0,28412.0,0.0714]
[1680400668864,0.3127,28413.0,28412.0,0.0714]
[1680400677067,0.3831,28413.0,28412.0,0.0714]
[1680400683169,0.0824,28413.0,28412.0,0.0714]
[1680400683364,0.3831,28413.0,28412.0,0.0714]
[1680400684169,0.0824,28413.0,28412.0,0.0714]
[1680400684366,0.3831,28413.0,28412.0,0.0714]
[1680400685080,0.3811,28413.0,28412.0,0.0714]
[1680400686978,0.3809,28413.0,28412.0,0.001]
[1680400691786,0.3939,28413.0,28411.0,0.0704]
[1680400695192,0.52050002,28413.0,28411.0,0.0704]
[1680400697090,0.0704,28412.0,28411.0,0.0704]
[1680400699398,0.0864,28412.0,28411.0,0.0704]
[1680400700399,0.0804,28412.0,28411.0,0.07025678]
[1680400711011,0.50770002,28412.0,28411.0,0.07025678]
[1680400711210,0.57810002,28412.0,28408.0,0.0704]
[1680400711411,0.3711,28409.0,28408.0,0.0704]
[1680400712613,0.3721,28409.0,28408.0,0.0704]
[1680400714814,0.0714,28409.0,28408.0,0.0704]
[1680400715010,0.3721,28409.0,28408.0,0.0704]
[1680400716917,0.3017,28409.0,28408.0,0.0704]
[1680400724425,0.001,28409.0,28408.0,0.0704]
[1680400724613,0.3017,28409.0,28408.0,0.0704]
[1680400727533,0.001,28409.0,28408.0,0.0704]
[1680400727840,0.3017,28409.0,28408.0,0.0704]
[1680400731239,0.001,28409.0,28408.0,0.0704]
[1680400731439,0.3017,28409.0,28408.0,0.0704]
[1680400736944,0.3721,28409.0,28407.0,0.0704]
[1680400737242,0.0704,28408.0,28407.0,0.0704]
[1680400739741,0.0714,28408.0,28407.0,0.0704]
[1680400747051,0.0708,28408.0,28407.0,0.0701]
[1680400750250,0.0708,28408.0,28407.0,0.06991549]
[1680400756958,0.0708,28408.0,28407.0,0.0704]
[1680400763062,0.3715,28408.0,28407.0,0.0704]
[1680400765370,0.6722,28408.0,28407.0,0.0704]
[1680400766971,0.6024,28408.0,28407.0,0.0701]
[1680400767669,0.3017,28408.0,28407.0,0.0701]
[1680400768671,0.3017,28408.0,28404.0,0.05]
[1680400768672,0.3721,28408.0,28404.0,0.05]
[1680400768875,0.3707,28405.0,28401.0,0.002]
[1680400769073,0.0704,28404.0,28401.0,0.052]
[1680400769373,0.0704,28404.0,28403.0,0.0704]
[1680400770467,0.0734,28404.0,28403.0,0.0704]
[1680400776871,0.0734,28404.0,28403.0,0.0697]
[1680400779480,0.3741,28404.0,28403.0,0.0697]
[1680400786877,0.3037,28404.0,28401.0,0.0704]
[1680400787084,0.0704,28402.0,28401.0,0.0704]
[1680400788186,0.0734,28402.0,28401.0,0.0704]
[1680400794796,0.1408,28401.0,28393.0,0.7299]
[1680400794987,0.3711,28396.0,28395.0,0.0704]
[1680400795589,0.3007,28396.0,28395.0,0.0704]
[1680400796092,0.3037,28396.0,28395.0,0.0704]
[1680400796687,0.3741,28396.0,28394.0,0.05]
[1680400796895,0.3037,28396.0,28395.0,0.0704]
[1680400805392,0.003,28396.0,28395.0,0.0704]
[1680400814809,0.3037,28396.0,28395.0,0.0704]
[1680400817013,0.3737,28396.0,28395.0,0.0698]
[1680400822403,0.3736,28396.0,28392.0,0.0697]
[1680400822714,0.3711,28393.0,28392.0,0.0697]
[1680400824114,0.3741,28393.0,28392.0,0.0697]
[1680400825006,0.3735,28393.0,28389.0,0.1204]
[1680400825215,0.3711,28390.0,28389.0,0.1204]
[1680400825718,0.3711,28390.0,28389.0,0.0704]
[1680400826815,0.3741,28390.0,28389.0,0.0704]
[1680400827016,0.3735,28390.0,28389.0,0.0704]
[1680400833023,0.3741,28390.0,28387.0,0.1204]
[1680400833327,0.0704,28388.0,28387.0,0.0704]
[1680400834125,0.0734,28388.0,28387.0,0.0704]
[1680400837832,0.3741,28388.0,28387.0,0.0704]
[1680400845731,0.3741,28388.0,28384.0,0.05]
[1680400845732,0.3037,28388.0,28381.0,0.3751]
[1680400845930,0.0698,28383.0,28381.0,0.0704]
[1680400846831,0.0704,28386.0,28382.0,0.1204]
[1680400847032,0.3711,28388.0,28385.0,0.0704]
[1680400847233,0.3711,28388.0,28386.0,0.1204]
[1680400847428,0.3711,28388.0,28387.0,0.05]
[1680400847932,0.3741,28388.0,28387.0,0.05]
[1680400848326,0.3711,28388.0,28387.0,0.05]
[1680400848532,0.3741,28388.0,28387.0,0.05]
[1680400849435,0.3741,28388.0,28386.0,0.1204]
[1680400852832,0.3741,28388.0,28386.0,0.0704]
[1680400853226,0.0704,28387.0,28384.0,0.1198]
[1680400853430,0.0698,28385.0,28384.0,0.1198]
[1680400854538,0.0728,28385.0,28384.0,0.1198]
[1680400855439,0.0728,28385.0,28384.0,0.0698]
[1680400856935,0.073,28385.0,28383.0,0.1204]
[1680400857135,0.0702,28384.0,28383.0,0.1204]
[1680400857441,0.3709,28384.0,28383.0,0.0704]
[1680400858240,0.3739,28384.0,28383.0,0.0704]
[1680400858642,0.3736,28384.0,28383.0,0.0704]
[1680400861346,0.4445,28384.0,28381.0,0.05]
[1680400861539,0.0704,28382.0,28381.0,0.05]
[1680400862843,0.0734,28382.0,28381.0,0.05]
[1680400865242,0.0734,28382.0,28380.0,0.0704]
[1680400865442,0.0698,28381.0,28380.0,0.0704]
[1680400866547,0.0728,28381.0,28380.0,0.0704]
[1680400866950,0.003,28381.0,28380.0,0.0704]
[1680400867245,0.1409,28392.0,28380.0,0.5816]
[1680400867246,0.0704,28388.0,28380.0,0.5816]
[1680400867445,0.0704,28388.0,28387.0,0.0704]
[1680400868751,0.0734,28388.0,28387.0,0.0734]
[1680400874052,0.3741,28388.0,28387.0,0.0734]
[1680400874250,0.3741,28388.0,28387.0,0.003]
[1680400874455,0.3736,28388.0,28387.0,0.003]
[1680400880455,0.37342339,28388.0,28387.0,0.003]
[1680400893175,0.30352339,28388.0,28387.0,0.0734]
[1680400893374,0.00282339,28388.0,28387.0,0.0734]
[1680400895274,0.00282339,28388.0,28387.0,0.3741]
[1680400897874,0.00282339,28388.0,28387.0,0.0734]
[1680400905584,0.003,28388.0,28387.0,0.0734]
[1680400909785,0.003,28388.0,28387.0,0.1234]
[1680400928102,0.003,28388.0,28387.0,0.0734]
[1680400929607,0.003,28388.0,28387.0,0.0732977]
[1680400937121,0.002,28388.0,28387.0,0.0732977]
[1680400937319,0.0704,28389.0,28387.0,0.0732977]
[1680400937622,0.002,28388.0,28387.0,0.003]
[1680400937816,0.002,28388.0,28387.0,0.0734]
[1680400938317,0.0704,28389.0,28387.0,0.0704]
[1680400938522,0.0714,28389.0,28388.0,0.0704]
[1680400939716,0.0704,28389.0,28388.0,0.0704]
[1680400940224,0.0714,28389.0,28388.0,0.0734]
[1680400940518,0.3721,28389.0,28388.0,0.0734]
[1680400945524,0.4423,28389.0,28388.0,0.003]
[1680400956933,0.3719,28389.0,28388.0,0.003]
[1680400962839,0.0712,28389.0,28388.0,0.003]
[1680400966742,0.0712,28389.0,28388.0,0.053]
[1680400967141,0.0712,28389.0,28388.0,0.003]
[1680400968444,0.07109685,28389.0,28388.0,0.003]
[1680400969839,0.07009685,28389.0,28387.0,0.05]
[1680400970044,0.001,28389.0,28388.0,0.003]
[1680400970244,0.0712,28389.0,28388.0,0.003]
[1680400986852,0.3719,28389.0,28388.0,0.003]
[1680400987054,0.4423,28389.0,28388.0,0.003]
[1680400987851,0.583,28389.0,28388.0,0.003]
[1680401001363,0.4423,28389.0,28388.0,0.003]
[1680401008963,0.1416,28389.0,28388.0,0.003]
[1680401009167,0.0714,28389.0,28388.0,0.0734]
[1680401014770,0.0714,28389.0,28388.0,0.07329681]
[1680401038090,0.0714,28389.0,28388.0,0.00289681]
[1680401038289,0.001,28389.0,28388.0,0.07329681]
[1680401040396,0.001,28389.0,28388.0,0.12329681]
[1680401041791,0.001,28389.0,28388.0,0.19339681]
[1680401045793,0.42730002,28395.0,28389.0,0.05]
[1680401046091,0.3007,28395.0,28394.0,0.0701]
[1680401047300,0.3277,28395.0,28394.0,0.0701]
[1680401048795,0.3007,28395.0,28394.0,0.0701]
[1680401048991,0.3277,28395.0,28394.0,0.0701]
[1680401049400,0.3167,28395.0,28394.0,0.0701]
[1680401050995,0.016,28395.0,28394.0,0.0701]
[1680401055606,0.016,28395.0,28394.0,0.3708]
[1680401056301,0.016,28395.0,28394.0,0.582]
[1680401057004,0.42730002,28400.0,28395.0,0.05]
[1680401057204,0.42730002,28400.0,28399.0,0.0704]
[1680401057405,0.12660002,28401.0,28399.0,0.0704]
[1680401057607,0.12660002,28401.0,28400.0,0.0701]
[1680401058602,0.003,28401.0,28400.0,0.0721]
[1680401059001,0.003,28401.0,28400.0,0.1427]
[1680401059409,0.12660002,28404.0,28400.0,0.4225]
[1680401059612,0.44110002,28405.0,28403.0,0.5823]
[1680401059805,0.12660002,28405.0,28404.0,0.1204]
[1680401060210,0.12660002,28406.0,28404.0,0.1204]
[1680401060507,0.12660002,28406.0,28405.0,0.0697]
[1680401061310,0.23918712,28408.0,28405.0,0.0697]
[1680401061311,0.12660002,28407.0,28405.0,0.0697]
[1680401061512,0.12660002,28407.0,28406.0,0.0704]
[1680401062314,0.14460002,28407.0,28406.0,0.0704]
[1680401062610,0.018,28407.0,28406.0,0.0724]
[1680401063710,0.018,28407.0,28406.0,0.3731]
[1680401067423,0.018,28407.0,28406.0,0.4231]
[1680401069209,0.018,28407.0,28406.0,0.4934]
[1680401070722,0.018,28407.0,28406.0,0.4434]
[1680401074326,0.018,28407.0,28406.0,0.1427]
[1680401076124,0.018,28407.0,28406.0,0.5843]
[1680401079026,0.018,28407.0,28406.0,0.4431]
[1680401080019,0.018,28407.0,28406.0,0.1424]
[1680401081630,0.018,28407.0,28406.0,0.0723]
[1680401092735,0.3187,28407.0,28406.0,0.0723]
[1680401103733,0.3187,28407.0,28406.0,0.07209747]
[1680401113747,0.3891,28407.0,28406.0,0.00179747]
[1680401114155,0.51570002,28407.0,28406.0,0.00179747]
[1680401117062,0.51570002,28407.0,28406.0,0.07189747]
[1680401120050,0.51370002,28407.0,28406.0,0.0721]
[1680401120760,0.21300002,28407.0,28406.0,0.0721]
[1680401120959,0.51370002,28407.0,28406.0,0.0721]
[1680401124259,0.3871,28407.0,28406.0,0.0721]
[1680401124456,0.51370002,28407.0,28406.0,0.0721]
[1680401124864,0.3871,28407.0,28406.0,0.0721]
[1680401125262,0.51370002,28407.0,28406.0,0.0721]
[1680401126968,0.3869,28407.0,28406.0,0.0721]
[1680401127465,0.51350002,28407.0,28406.0,0.0721]
[1680401129364,0.51310002,28407.0,28406.0,0.0724]
[1680401130265,0.3865,28407.0,28406.0,0.0724]
[1680401131769,0.51310002,28407.0,28406.0,0.0724]
[1680401132165,0.3865,28407.0,28406.0,0.0724]
[1680401132371,0.51310002,28407.0,28406.0,0.0724]
[1680401132972,0.3865,28407.0,28406.0,0.0724]
[1680401133161,0.51310002,28407.0,28406.0,0.0724]
[1680401136973,0.51370002,28407.0,28406.0,0.002]
[1680401143770,0.3871,28407.0,28406.0,0.002]
[1680401144681,0.0864,28407.0,28406.0,0.002]
[1680401146877,0.016,28407.0,28406.0,0.0717]
[1680401151290,0.016,28407.0,28406.0,0.07151173]
[1680401154391,0.015,28407.0,28406.0,0.0717]
[1680401159990,0.015,28407.0,28406.0,0.1217]
[1680401172710,0.015,28407.0,28406.0,0.0717]
[1680401173401,0.015,28407.0,28406.0,0.1217]
[1680401180709,0.015,28407.0,28406.0,0.1921]
[1680401182708,0.015,28407.0,28406.0,0.4928]
[1680401185712,0.12660002,28412.0,28407.0,0.05]
[1680401185912,0.12660002,28412.0,28411.0,0.1408]
[1680401186116,0.12660002,28412.0,28411.0,0.1908]
[1680401186614,0.12660002,28413.0,28411.0,0.1908]
[1680401186817,0.12660002,28413.0,28412.0,0.0704]
[1680401188712,0.12760002,28413.0,28412.0,0.0724]
[1680401190620,0.001,28413.0,28412.0,0.0724]
[1680401191719,0.12760002,28413.0,28412.0,0.0724]
[1680401192624,0.001,28413.0,28412.0,0.0724]
[1680401199921,0.001,28413.0,28412.0,0.1428]
[1680401200127,0.12660002,28418.0,28413.0,0.05]
[1680401200329,0.12660002,28419.0,28417.0,0.5816]
[1680401200531,0.16878712,28421.0,28417.0,0.5816]
[1680401200532,0.12660002,28420.0,28418.0,0.1908]
[1680401200720,0.12660002,28420.0,28419.0,0.1204]
[1680401201127,0.12660002,28420.0,28419.0,0.0704]
[1680401202026,0.12760002,28420.0,28419.0,0.0724]
[1680401202730,0.001,28420.0,28419.0,0.0724]
[1680401204230,0.12760002,28420.0,28419.0,0.0724]
[1680401204438,0.001,28420.0,28419.0,0.0724]
[1680401206931,0.001,28420.0,28419.0,0.1427]
[1680401221137,0.3017,28420.0,28419.0,0.002]
[1680401221336,0.3721,28420.0,28419.0,0.002]
[1680401226952,0.3017,28420.0,28419.0,0.0724]
[1680401230145,0.001,28420.0,28419.0,0.0724]
[1680401240759,0.3017,28420.0,28419.0,0.0724]
[1680401244362,0.3017,28420.0,28419.0,0.07219674]
[1680401244559,0.42830002,28420.0,28419.0,0.07219674]
[1680401252667,0.42831762,28420.0,28419.0,0.07219674]
[1680401253871,0.47831762,28420.0,28419.0,0.07219674]
[1680401254064,0.47831762,28420.0,28417.0,0.0701]
[1680401254065,0.59048712,28420.0,28417.0,0.0704]
[1680401254265,0.19642475,28418.0,28417.0,0.0704]
[1680401254964,0.19642475,28418.0,28417.0,0.0724]
[1680401255669,0.19642475,28418.0,28417.0,0.0704]
[1680401255862,0.19842475,28418.0,28417.0,0.0724]
[1680401256974,0.19902475,28418.0,28417.0,0.002]
[1680401258371,0.05,28417.0,28413.0,0.0697]
[1680401258572,0.79842455,28414.0,28413.0,0.0697]
[1680401258865,0.6718,28414.0,28413.0,0.0697]
[1680401259069,0.79842455,28414.0,28413.0,0.0697]
[1680401259768,0.49772455,28414.0,28413.0,0.0697]
[1680401259974,0.3711,28414.0,28413.0,0.0717]
[1680401260271,0.3711,28414.0,28413.0,0.0697]
[1680401260471,0.3751,28414.0,28413.0,0.0717]
[1680401263762,0.0744,28414.0,28413.0,0.0724]
[1680401263967,0.004,28414.0,28413.0,0.0724]
[1680401264272,0.004,28414.0,28413.0,0.1224]
[1680401265369,0.004,28414.0,28413.0,0.3336]
[1680401265672,0.004,28414.0,28413.0,0.6345]
[1680401267172,0.12662455,28420.0,28414.0,0.05]
[1680401267473,0.19702455,28421.0,28419.0,0.0704]
[1680401267674,0.12662455,28421.0,28420.0,0.0704]
[1680401269870,0.12762455,28421.0,28420.0,0.0704]
[1680401270271,0.12762455,28421.0,28420.0,0.0724]
[1680401270465,0.001,28421.0,28420.0,0.0724]
[1680401270672,0.001,28421.0,28420.0,0.1224]
[1680401273568,0.001,28421.0,28420.0,0.3336]
[1680401278868,0.001,28421.0,28420.0,0.4744]
[1680401279074,0.001,28421.0,28420.0,0.4745]
[1680401279579,0.12662455,28424.0,28421.0,0.05]
[1680401279781,0.12662455,28424.0,28423.0,0.2809]
[1680401279980,0.12662455,28425.0,28423.0,0.3309]
[1680401280181,0.12662455,28425.0,28424.0,0.1907]
[1680401282274,0.12662455,28426.0,28424.0,0.1907]
[1680401282478,0.12662455,28426.0,28425.0,0.4415]
[1680401282673,0.12634151,28426.0,28425.0,0.4415]
[1680401282880,0.16878712,28427.0,28425.0,0.4415]
[1680401283074,0.12634205,28426.0,28425.0,0.3711]
[1680401283275,0.12634202,28426.0,28425.0,0.4409]
[1680401283476,0.16878712,28427.0,28425.0,0.4409]
[1680401283676,0.16878712,28427.0,28426.0,0.0704]
[1680401283876,0.16878712,28427.0,28426.0,0.1204]
[1680401284182,0.16878712,28427.0,28426.0,0.0704]
[1680401285477,0.16878712,28427.0,28426.0,0.0724]
[1680401286785,0.12629824,28427.0,28426.0,0.0724]
[1680401286987,0.17629824,28427.0,28426.0,0.0724]
[1680401288684,0.24669824,28427.0,28426.0,0.002]
[1680401288995,0.1204,28427.0,28426.0,0.002]
[1680401291380,0.1908,28427.0,28426.0,0.002]
[1680401292791,0.1908,28426.0,28419.0,0.0704]
[1680401293089,0.3711,28421.0,28419.0,0.0704]
[1680401294088,0.3741,28421.0,28419.0,0.0724]
[1680401300491,0.0698,28420.0,28419.0,0.002]
[1680401300690,0.1198,28420.0,28419.0,0.002]
[1680401300889,0.0698,28420.0,28419.0,0.002]
[1680401301290,0.3037,28421.0,28419.0,0.0724]
[1680401301489,0.3007,28421.0,28420.0,0.0704]
[1680401301686,0.0704,28422.0,28420.0,0.0704]
[1680401303195,0.001,28421.0,28420.0,0.0724]
[1680401304003,0.0714,28422.0,28420.0,0.0724]
[1680401304296,0.0704,28422.0,28420.0,0.0704]
[1680401304492,0.001,28421.0,28420.0,0.0724]
[1680401305703,0.0714,28422.0,28420.0,0.0724]
[1680401306198,0.001,28421.0,28420.0,0.0724]
[1680401306591,0.0714,28422.0,28420.0,0.0724]
[1680401307001,0.19668249,28424.0,28421.0,0.0701]
[1680401307196,0.19668249,28424.0,28422.0,0.0704]
[1680401308002,0.12628249,28423.0,28422.0,0.0704]
[1680401308799,0.12628249,28423.0,28422.0,0.0724]
[1680401309302,0.12728249,28423.0,28422.0,0.0724]
[1680401309801,0.19768249,28423.0,28422.0,0.0724]
[1680401310306,0.0714,28423.0,28422.0,0.0724]
[1680401314325,0.24018712,28423.0,28422.0,0.0724]
[1680401314825,0.0714,28423.0,28422.0,0.0724]
[1680401315518,0.24018712,28423.0,28422.0,0.0724]
[1680401315922,0.0714,28423.0,28422.0,0.0724]
[1680401316224,0.24018712,28423.0,28422.0,0.0724]
[1680401317026,0.0714,28423.0,28422.0,0.002]
[1680401318322,0.3721,28423.0,28422.0,0.002]
[1680401325334,0.12750216,28423.0,28422.0,0.0724]
[1680401325527,0.001,28423.0,28422.0,0.0724]
[1680401334037,0.001,28423.0,28422.0,0.1224]
[1680401334426,0.001,28423.0,28422.0,0.0724]
[1680401334835,0.001,28423.0,28422.0,0.1224]
[1680401335530,0.001,28423.0,28422.0,0.1928]
[1680401337441,0.001,28423.0,28422.0,0.4435]
[1680401337634,0.001,28423.0,28422.0,0.3731]
[1680401340630,0.001,28423.0,28422.0,0.0724]
[1680401345053,0.071,28423.0,28422.0,0.002]
[1680401345951,0.121,28423.0,28422.0,0.00185238]
[1680401346150,0.071,28423.0,28422.0,0.00185238]
[1680401348752,0.3717,28423.0,28422.0,0.00185238]
[1680401350049,0.49820216,28423.0,28422.0,0.00185238]
[1680401357051,0.49860216,28423.0,28422.0,0.00185238]
[1680401370160,0.3721,28423.0,28422.0,0.00185238]
[1680401372061,0.05,28422.0,28420.0,0.0704]
[1680401372258,0.12659487,28421.0,28420.0,0.0704]
[1680401372463,0.17659487,28421.0,28420.0,0.0704]
[1680401373256,0.12659487,28421.0,28420.0,0.0704]
[1680401373455,0.12959487,28421.0,28420.0,0.0724]
[1680401374770,0.003,28421.0,28420.0,0.0724]
[1680401376270,0.003,28421.0,28420.0,0.1425]
[1680401386980,0.003,28421.0,28420.0,0.2828]
[1680401387980,0.46948712,28425.0,28421.0,0.45]
[1680401388280,0.46948712,28425.0,28424.0,0.281]
[1680401388281,0.3007,28425.0,28424.0,0.281]
[1680401388482,0.3007,28425.0,28424.0,0.331]
[1680401388873,0.12658404,28427.0,28424.0,0.331]
[1680401389077,0.12658404,28427.0,28426.0,0.1907]
[1680401390284,0.12758404,28427.0,28426.0,0.1927]
[1680401390478,0.001,28427.0,28426.0,0.1927]
[1680401390888,0.001,28427.0,28426.0,0.4934]
[1680401392178,0.001,28427.0,28426.0,0.1927]
[1680401392380,0.001,28427.0,28426.0,0.4934]
[1680401395389,0.001,28427.0,28426.0,0.4434]
[1680401397992,0.001,28427.0,28426.0,0.1427]
[1680401414608,0.001,28427.0,28426.0,0.0723]
[1680401430213,0.4221,28427.0,28426.0,0.0724]
[1680401430618,0.59088712,28427.0,28426.0,0.0724]
[1680401432412,0.59088712,28427.0,28426.0,0.07228121]
[1680401432611,0.59084457,28427.0,28426.0,0.07228121]
[1680401433118,0.3721,28427.0,28426.0,0.07228121]
[1680401433623,0.54084416,28427.0,28426.0,0.07228121]
[1680401436919,0.54084416,28427.0,28426.0,0.00188121]
[1680401442327,0.3721,28427.0,28426.0,0.00188121]
[1680401443028,0.3017,28427.0,28426.0,0.07228121]
[1680401446838,0.05,28426.0,28423.0,0.0704]
[1680401447045,0.42720898,28424.0,28420.0,0.2614]
[1680401447235,0.42720898,28424.0,28423.0,0.0704]
[1680401447838,0.42920898,28424.0,28423.0,0.0704]
[1680401449742,0.3027,28424.0,28423.0,0.0704]
[1680401449940,0.3007,28424.0,28423.0,0.0724]
[1680401450141,0.3027,28424.0,28423.0,0.0724]
[1680401456938,0.42920898,28424.0,28423.0,0.0724]
[1680401457143,0.3027,28424.0,28423.0,0.0724]
[1680401457548,0.05,28423.0,28420.0,0.0706]
[1680401457739,0.3007,28421.0,28420.0,0.0706]
[1680401457936,0.3007,28421.0,28420.0,0.1408]
[1680401458141,0.3007,28421.0,28417.0,0.05]
[1680401458142,0.3707,28421.0,28417.0,0.05]
[1680401458344,0.3007,28418.0,28413.0,0.3007]
[1680401458545,0.3007,28418.0,28417.0,0.1408]
[1680401458745,0.3707,28421.0,28417.0,0.1408]
[1680401458951,0.3707,28421.0,28420.0,0.0698]
[1680401459447,0.3707,28421.0,28420.0,0.0718]
[1680401459839,0.3747,28421.0,28420.0,0.0718]
[1680401460044,0.3747,28421.0,28420.0,0.002]
[1680401462751,0.004,28421.0,28420.0,0.0724]
[1680401464148,0.004,28421.0,28420.0,0.2835]
[1680401464450,0.12650898,28426.0,28421.0,0.05]
[1680401464651,0.12650898,28426.0,28425.0,0.0704]
[1680401465448,0.12750898,28426.0,28425.0,0.0704]
[1680401465948,0.12750898,28426.0,28425.0,0.0724]
[1680401473248,0.12750898,28426.0,28425.0,0.1427]
[1680401474048,0.12752993,28426.0,28425.0,0.1427]
[1680401474552,0.1275299,28426.0,28425.0,0.1427]
[1680401484058,0.001,28426.0,28425.0,0.1427]
[1680401485862,0.001,28426.0,28425.0,0.0724]
[1680401496967,0.001,28426.0,28425.0,0.1427]
[1680401510582,0.1275299,28426.0,28425.0,0.1427]
[1680401510784,0.1275299,28426.0,28425.0,0.0724]
[1680401516479,0.1275299,28426.0,28425.0,0.07227407]
[1680401516984,0.1275299,28426.0,28425.0,0.002]
[1680401516985,0.1973299,28426.0,28425.0,0.002]
[1680401522886,0.1275299,28426.0,28425.0,0.0721]
[1680401524989,0.001,28426.0,28425.0,0.0721]
[1680401525689,0.1275299,28426.0,28425.0,0.0721]
[1680401533795,0.001,28426.0,28425.0,0.0721]
[1680401535899,0.0708,28426.0,28425.0,0.0724]
[1680401536894,0.3715,28426.0,28425.0,0.0724]
[1680401542706,0.49808617,28426.0,28425.0,0.0724]
[1680401542901,0.49808503,28426.0,28425.0,0.0724]
[1680401544006,0.3715,28426.0,28425.0,0.0724]
[1680401545414,0.49808813,28426.0,28425.0,0.0724]
[1680401545603,0.3715,28426.0,28425.0,0.0724]
[1680401546312,0.4980908,28426.0,28425.0,0.0724]
[1680401546512,0.3715,28426.0,28425.0,0.0724]
[1680401547016,0.3721,28426.0,28425.0,0.0724]
[1680401547317,0.49869166,28426.0,28425.0,0.0724]
[1680401549707,0.12759166,28426.0,28425.0,0.0724]
[1680401555119,0.001,28426.0,28425.0,0.0724]
[1680401557227,0.12759166,28426.0,28425.0,0.0724]
[1680401566943,0.12759166,28426.0,28425.0,0.1428]
[1680401569631,0.001,28426.0,28425.0,0.1428]
[1680401570537,0.001,28426.0,28425.0,0.1427191]
[1680401570737,0.001,28426.0,28425.0,0.4434191]
[1680401576242,0.001,28426.0,28425.0,0.1427191]
[1680401576942,0.001,28426.0,28425.0,0.1422191]
[1680401578630,0.12759166,28426.0,28425.0,0.1422191]
[1680401579942,0.001,28426.0,28425.0,0.1422191]
[1680401581643,0.12759166,28426.0,28425.0,0.1422191]
[1680401586145,0.42829166,28426.0,28425.0,0.1422191]
[1680401587042,0.42829166,28426.0,28425.0,0.0723191]
[1680401587940,0.49809166,28426.0,28425.0,0.0723191]
[1680401597045,0.49869166,28426.0,28425.0,0.0723191]
[1680401604960,0.19799166,28426.0,28425.0,0.0723191]